Cogmind - Beta 15 X1 @@@ ROGUE MODE // 2024.11.13 @ 18:31:11 Player: Some Pennies Result: Destroyed by 3N-JOW(R) with Subdweller Machine Gun Performance ------------- Evolutions (0) 0 Regions Visited (2) 400 Robots Destroyed (19) 95 Value Destroyed (431) 431 Prototype IDs (11) 220 Alien Tech Used (0) 0 Bonus (-30) -30 TOTAL SCORE: 1116 Bonus ------- Friendly Fire -30 Cogmind --------- Core Integrity 0/250 Matter 296/300 Energy 250/250 System Corruption 0% Temperature Cool (0) Movement Walking (120) Location -10/Subcaves Parts ------- > --- POWER (1) -------- Ion Engine > --- PROPULSION (2) --- Aluminum Leg Aluminum Leg > --- UTILITY (2) ------ Small Storage Unit Improved Terrain Scanner > --- WEAPON (2) ------- Subdweller Laser Light Assault Rifle > --- INVENTORY (8) ---- Wheel Improved Heat Sink Machine Analyzer Seismic Detector Tower Shield Mining Laser Multitool Peak State ------------ > --- POWER ------------ Ion Engine > --- PROPULSION ------- Light Treads Light Treads > --- UTILITY ---------- High-capacity Storage Unit Improved Terrain Scanner > --- WEAPON ----------- Small Laser Subdweller Machine Gun > --- INVENTORY -------- Ion Engine Light Ion Engine Aluminum Leg Aluminum Leg Wheel Improved Heat Sink Small Storage Unit Signal Interpreter Seismic Detector Tower Shield Light Assault Rifle Mining Laser [Rating: 13] Favorites ----------- Power Ion Engine Engine Ion Engine Propulsion Light Treads Treads Light Treads Leg Aluminum Leg Wheel Wheel Utility Improved Terrain Scanner Device Improved Terrain Scanner Storage High-capacity Storage Unit Weapon Small Laser Energy Gun Small Laser Ballistic Gun Light Assault Rifle Special Weapon Mining Laser Build | -11 -10 -10 ------- Run | Yrd Mat Sub Slots Evolved . | . . . Power . | . . . Propulsion . | . . . Utility . | . . . Weapon . | . . . Parts Attached 18 | 8 5 5 Power 3 | 2 . 1 Engine 3 | 2 . 1 Core . | . . . Reactor . | . . . Propulsion 5 | 2 1 2 Treads 2 | 1 1 . Leg 2 | . . 2 Wheel 1 | 1 . . Hover . | . . . Flight . | . . . Utility 4 | 2 2 . Device 2 | 1 1 . Storage 2 | 1 1 . Processor . | . . . Hackware . | . . . Protection . | . . . Artifact . | . . . Weapon 6 | 2 2 2 Energy Gun 2 | 1 . 1 Energy Cannon . | . . . Ballistic Gun 3 | 1 1 1 Ballistic Cannon . | . . . Launcher . | . . . Special Weapon 1 | . 1 . Impact Weapon . | . . . Slashing Weapon . | . . . Piercing Weapon . | . . . Special Melee Weapon . | . . . Unidentified Prototypes . | . . . Parts Lost 5 | . . 5 Power 1 | . . 1 Propulsion 2 | . . 2 Utility . | . . . Weapon 2 | . . 2 Highest Loss Streak 4 | . . 4 To Critical Strikes . | . . . Average Backups 9 | 4 9 9 Power 1 | . 1 . Propulsion 2 | 2 3 1 Utility 3 | . 3 4 Weapon 1 | 1 2 1 Tool/Special . | . . . Unused Backups 6 | . 1 5 Power . | . . . Propulsion 1 | . 1 . Utility 4 | . . 4 Weapon . | . . . Tool/Special 1 | . . 1 Average Slot Usage (%) 98 | . 100 97 Engine 13 | . 14 13 Treads 20 | . 27 13 Leg 7 | . . 14 Device 14 | . 14 14 Storage 14 | . 14 14 Energy Gun 12 | . 12 12 Ballistic Gun 13 | . 14 13 Peak Build Rating 13 | 8 11 13 Average Rating 10 | 5 9 11 On Entrance 6 | . 8 11 Naked Turns . | . . . Heaviest Build 51 | 13 51 51 Greatest Support 40 | 20 40 40 Greatest Overweight (x) 1 | 1 1 1 Average Overweight (x) . | . . . Largest Inventory Capacity 20 | 8 20 20 Average Capacity 14 | 7 16 13 Most Carried 14 | 8 11 14 Average Carried 9 | 4 9 9 Final Capacity 20 | 8 20 8 Final Carried 11 | 8 11 8 Class Distribution -------------------- 100% | Mutant Dominant Class ---------------- Mutant | -10/Materials Mutant | -10/Subcaves Resources | -11 -10 -10 ----------- Run | Yrd Mat Sub Matter Collected 464 | 287 88 89 Remotely . | . . . Salvage Created 839 | 143 451 245 Parts 50 | 18 19 13 Haulers Intercepted 1 | . 1 . Recyclers Shooed 1 | . 1 . Parts Field Recycled . | . . . Retrieved Matter . | . . . Parts Self-Destructed 4 | . . 4 Prevented . | . . . Kills | -11 -10 -10 ------- Run | Yrd Mat Sub Combat Hostiles Destroyed 10 | . 5 5 Guns 10 | . 5 5 Classes Destroyed 8 | 2 4 2 Worker 1 | . 1 . Tunneler 4 | 4 . . Hauler 1 | . 1 . Recycler 3 | 1 2 . Grunt 6 | . 4 2 Sentry 1 | . . 1 Artisan 1 | . . 1 Subdweller 3 | . 1 2 Best Kill Streak 3 | 3 2 3 Combat Bots Only 3 | . 2 3 Max Kills in Single Turn 1 | 1 1 1 Gunslinging . | . . . Exploded . | . . . Melee . | . . . Uniques/NPCs Destroyed . | . . . Combat | -11 -10 -10 -------- Run | Yrd Mat Sub Hostile Shots Fired 89 | . 30 59 Missed 17 | . 3 14 Damage Taken 1076 | . 392 684 Core 266 | . 122 144 Absorbed by Shields . | . . . Core Remaining (%) 100 | 100 . . Volleys Fired 91 | 7 39 45 Largest 2 | 2 2 2 Hottest 100 | 60 100 70 Shots Fired 146 | 14 77 55 Gun 145 | 14 76 55 Cannon . | . . . Launcher . | . . . Special 1 | . 1 . Kinetic 77 | 7 38 32 Thermal 69 | 7 39 23 Explosive . | . . . Electromagnetic . | . . . Robot Hit Streak 13 | 3 13 6 Robot Miss Streak 3 | 1 3 3 Penetration Max . | . . . Secondary Targets 1 | . . 1 Max Gunslinging Chain 1 | . . 1 Shots Hit Robots 92 | 7 55 30 Core Hits 39 | 6 21 12 Critical Kills . | . . . Critical Parts Destroyed 1 | . . 1 Critical Strikes 2 | . . 2 Destroy 2 | . . 2 Melee Attacks . | . . . Impact . | . . . Slashing . | . . . Piercing . | . . . Sneak Attacks . | . . . Combat Hostiles . | . . . Follow-up Attacks . | . . . Damage Inflicted 1013 | 82 546 385 Guns 1013 | 82 546 385 Cannons . | . . . Explosions . | . . . Melee . | . . . Ramming . | . . . Kinetic 451 | 28 186 237 Thermal 562 | 54 360 148 Explosive . | . . . Electromagnetic . | . . . Impact . | . . . Slashing . | . . . Piercing . | . . . Highest Corruption . | . . . Average Corruption . | . . . Corruption Purged . | . . . Corruption Blocked . | . . . Overload Shots . | . . . Overflow Damage . | . . . Projectiles . | . . . Explosions . | . . . Melee . | . . . Knockbacks . | . . . Impact . | . . . Kinetic . | . . . Secondary . | . . . Self-Inflicted Damage . | . . . Shots . | . . . Rammed . | . . . Targets Rammed . | . . . Kicked . | . . . Crushed . | . . . Highest Temperature 153 | 40 153 . Average Temperature 35 | 25 36 . Received Heat Transfer 387 | . 147 240 Siege Activations . | . . . Martial Activations . | . . . Shielding Activations . | . . . Robots Disrupted . | . . . Combat Hostiles . | . . . Robots Corrupted . | . . . Combat Hostiles . | . . . Parts Fried . | . . . Impact Corruptions . | . . . Robots Melted . | . . . Combat Hostiles . | . . . Parts Melted 1 | . 1 . Heat Transferred 1250 | 125 825 300 Parts Sabotaged . | . . . Parts Stolen . | . . . Parts Stripped . | . . . Power Chain Reactions . | . . . Alert | -11 -10 -10 ------- Run | Yrd Mat Sub Maximum Alert Level . | . . . Low Security (%) 100 | 100 100 . Level 1 . | . . . Level 2 . | . . . Level 3 . | . . . Level 4 . | . . . Level 5 . | . . . High Security . | . . . Max Security . | . . . Peak Influence 70 | 10 70 . Initial . | . . . Average 10 | 2 11 . Influence Increases 238 | 25 153 60 Destroy 0b10 Robot/C 140 | . 80 60 Destroy 0b10 Robot/NC 45 | 25 20 . Destroy Leader 22 | . 22 . Destroy Structure 1 | . 1 . Lose Combat Pursuer 30 | . 30 . Influence Decreases 238 | 25 153 60 Time Decay 208 | 25 153 30 Lost Part 30 | . . 30 Squads Dispatched 2 | . 2 . Investigation . | . . . Extermination . | . . . Reinforcement 2 | . 2 . Assault . | . . . Garrison . | . . . Intercept . | . . . Searches Triggered . | . . . Construction Impeded . | . . . Haulers Reinforced . | . . . Active Scanning Responses . | . . . Cargo Convoy Interrupts . | . . . Stealth | -11 -10 -10 --------- Run | Yrd Mat Sub Distress Signals 1 | . 1 . Communications Jammed . | . . . Distress Signals . | . . . Times Spotted 19 | . 13 6 Peak Tracking Total 3 | . 3 3 Tactical Retreats 1 | . 1 . Traps | -11 -10 -10 ------- Run | Yrd Mat Sub Traps Triggered . | . . . Indirectly . | . . . Trap Hack Attempts . | . . . Triggered . | . . . Disarmed . | . . . Reprogrammed . | . . . Reused . | . . . Traps Extracted . | . . . Installed . | . . . Triggered . | . . . Machines | -11 -10 -10 ---------- Run | Yrd Mat Sub Machines Disabled 1 | . . 1 Max in Single Turn 1 | . . 1 Machines Repaired . | . . . Machines Dismantled . | . . . Machines Sabotaged . | . . . Overloaded Fab Kills . | . . . Hacking | -11 -10 -10 --------- Run | Yrd Mat Sub Machines Accessed 1 | . . 1 Terminals . | . . . Fabricators . | . . . Repair Stations . | . . . Recycling Units . | . . . Scanalyzers . | . . . Garrison Access . | . . . Total Hacks 1 | . . 1 Successful 1 | . . 1 Failed . | . . . Catastrophic . | . . . Database Lockouts . | . . . Manual . | . . . Terminals . | . . . Fabricators . | . . . Repair Stations . | . . . Recycling Units . | . . . Scanalyzers . | . . . Garrison Access . | . . . Terminal Hacks 1 | . . 1 Derelict Proto ID Bank 1 | . . 1 Fabricator Hacks . | . . . Repair Station Hacks . | . . . Recycling Unit Hacks . | . . . Scanalyzer . | . . . Garrison Access Hacks . | . . . Unauthorized Hacks . | . . . Terminals . | . . . Fabricators . | . . . Repair Stations . | . . . Recycling Units . | . . . Scanalyzers . | . . . Garrison Access . | . . . Data Cores Recovered . | . . . Used . | . . . Hacking Detections . | . . . Full Trace Events . | . . . Feedback Events . | . . . Feedback Blocked . | . . . Robot Schematics Acquired . | . . . Robots Built . | . . . Authchips . | . . . Time . | . . . Total Robot Build Rating . | . . . Part Schematics Acquired . | . . . Parts Built . | . . . Authchips . | . . . Time . | . . . Total Part Build Rating . | . . . Parts Repaired . | . . . Time . | . . . Parts Recycled . | . . . Recycled Matter . | . . . Retrieved Matter . | . . . Retrieved Components . | . . . Parts Scanalyzed . | . . . Part Schematics Acquired . | . . . Parts Damaged . | . . . Bothacking | -11 -10 -10 ------------ Run | Yrd Mat Sub Used RIF Installer . | . . . Robots Hacked . | . . . Non-combat . | . . . Combat . | . . . Robot Hacks Applied . | . . . Relay Couplers Released . | . . . Fabnet Peak Effective % . | . . . Robots Rewired . | . . . Allies Hacked . | . . . Hacks Repelled . | . . . Allies | -11 -10 -10 -------- Run | Yrd Mat Sub Total Allies . | . . . Largest Group . | . . . Highest-Rated Group . | . . . Highest-Rated Ally . | . . . Total Orders . | . . . Ally Attacks . | . . . Total Damage . | . . . Kills . | . . . Allies Corrupted . | . . . Allies Melted . | . . . Intel | -11 -10 -10 ------- Run | Yrd Mat Sub Active Infowar (turns) 1623 | 44 807 772 Terrain 1564 | . 792 772 Seismic 59 | 44 15 . Robot Analysis Total . | . . . Derelict Logs Recovered 1 | . . 1 Drone Launches . | . . . Drone Recoveries . | . . . Exploration | -11 -10 -10 ------------- Run | Yrd Mat Sub Turns Passed 1702 | 123 807 772 Spaces Moved 787 | 91 290 406 Core 3 | 3 . . Treads 412 | 5 276 131 Legs 275 | . . 275 Wheels 97 | 83 14 . Hover . | . . . Flight . | . . . Fastest Speed 50 | 50 95 120 Average Speed 169 | 92 208 158 Slowest Speed 240 | 160 240 240 Overloaded Moves . | . . . Propulsion Burnouts . | . . . Robots Hopped . | . . . Cave-ins Triggered . | . . . Exploration Rate (%) 28 | 4 51 30 Regions Visited 2 Branch Regions 1 Pre-discovered Areas . | . . . Known Exits Taken . | . . . Unknown Exits Taken 2 | 1 1 . Scrap Searched . | . . . Spaces Dug 1 | . 1 . Terrain Destroyed 1 | . 1 . Melee . | . . . Projectile 1 | . 1 . AOE . | . . . Terrain Rammed . | . . . Walls Destroyed . | . . . Machines Disabled . | . . . Actions | -11 -10 -10 --------- Run | Yrd Mat Sub Total 1016 | 112 421 483 Wait 94 | . 78 16 Move 785 | 90 289 406 Hop . | . . . Pick Up 19 | 7 5 7 Fast Attach 9 | 7 1 1 Attach 5 | . . 5 Detach . | . . . Swap 6 | 1 5 . Drop 7 | . 4 3 Fire 91 | 7 39 45 Melee . | . . . Ram . | . . . Kick . | . . . Crush . | . . . Escape Stasis . | . . . Rewire . | . . . Trap . | . . . Miscellaneous . | . . . Route ------- -11/Scrapyard -10/Materials (discovered 3 exits: [*Mat] / [*Min] / *Sub) -10/Subcaves History --------- Turn | Location | Event 9 | -11/Scrapyard | Discovered new exit (range 15) 124 | -11/Scrapyard | Entered Materials 223 | -10/Materials | Discovered new exit (range 5) 272 | -10/Materials | Discovered new exit (range 13) 312 | -10/Materials | Build established: Mutant 724 | -10/Materials | Derelicts attacked the area 917 | -10/Materials | Discovered new exit (range 6) 931 | -10/Materials | Entered Subcaves 932 | -10/Subcaves | Approached by a straggling Scientist 955 | -10/Subcaves | Learned Materials trap positions 963 | -10/Subcaves | Shifting Twisted Machinery released Sub. Laser 1138 | -10/Subcaves | Visited 4L-MR0's lab 1159 | -10/Subcaves | Found Tower Shield 1275 | -10/Subcaves | Core integrity fell below 50% 1325 | -10/Subcaves | Lost 4 parts (1p2n1w) 1696 | -10/Subcaves | Core integrity fell below 20% 1703 | -10/Subcaves | Destroyed by 3N-JOW(R) with Subdweller Machine Gun Last Messages --------------- 01434_ QG-CEU(R) suffers critical hit (Destroy). VW-SVA(c): "I think it's somewhere south of here" 01488_ VW-SVA(c) destroyed. 01489_ Acquired 7 matter. 01491_ Acquired 1 matter. 01498_ Dropped Signal Interpreter. 01500_ Acquired Machine Analyzer. 01503_ Acquired 1 matter. 01509_ QG-CEU(R) destroyed. 01510_ Acquired 1 matter. 01523_ Acquired Sub. Laser. 01525_ Acquired 10 matter. 01535_ Subatomizers dissect the Sub. Power Source. 01545_ Subatomizers dissect the Sub. Optics. 01694_ Sub. Laser shoots sparks and powers down. 01697_ UFD SUBCON Station disabled. 01698_ EJ-7ZP(R) destroyed. Map ----- +----------------------------------------------------+ | | | | | | | | | | | | | | | | | | | | | | | | | | | | | ???????????????????#????????????????#????????????? | | ?????????????????????????????????????????????????? | | ?????????????????????????????????????????????????? | | ?????????????????#???????????????????????????????? | | ?????????????????????????"???????????????????????? | | ?????????????????????????????????????????????????? | | ?????????????????????????????????????????????????? | | ?????????????????????????????????????????????????? | | ???????????????????????##"###????????????????????? | | ????????????????#??????#" ""#??????????#?????????? | | ???????????????????????# !R##???????????????????? | | ??????????????????#???#?#@&%*##???????#??????????? | | ??????????????????????# #### ##?????????????????? | | ??????????????????????# ## ####????????????????? | | ?????????????????????## ### #?????????????????? | | ????????????????????## " """""##????????????????? | | ????????????????????# " " ""#????????#???????? | | ?????????????? """" #???????????#????? | | ??????????????# " ## #????????????????? | | ??????????????# "#### #????????????????? | | ?????????????? ??### ####?????????#???? | | ?????????????? ###### ## ????### " ##??????????#?? | | ????????????????????##?# ?????##" " ##???????????? | | ?????????????????????#?# ??????## ##????????????? | | ???????????????????????##???##?## ##??????#?????? | | ??????????????????????#????##""## #????????????# | | ????????? ?????????????## "" #????#???????? | | ???????? ?????????# """ ##????#??????? | | ???????# ????????? "##"" ""#???????????? | | ??????# #?????????## ?##""" "#??????#????? | | ?????? ##????????###### " #?#?????????? | | ?????? ##??????## ## "" #?????#?????? | | ??????# ##????## "" #???????????? | | ?????## #???## ##?#???#?????? | | ?????# ##?## ##????????????? | | ?????# ### ##?????????????? | +----------------------------------------------------+ Best States ------------- Heat Dissipation 25 Energy Generation 10 Energy Capacity 250 Matter Stores 300 Matter Capacity 300 Sight Range 16 Terrain Scan Range 16 Terrain Scan Density 10 Evasion (%) 55 Recoil Reduction 2 Item Schematics ----------------- None Robot Schematics ------------------ None Fabricated ------------ Nothing Repaired ---------- Nothing Alien Tech Used ----------------- None Achievements -------------- None Challenges ------------ None Game ------ Seed LongswordAlphaCompressor Manual? 0 Play Time 00:12:18 Cumulative 457.7 hours Start 2024.11.13 @ 18:22:42 End 2024.11.13 @ 18:31:11 Sessions 1 Manual Loads 0 Difficulty Rogue Special Mode None Game No. 308 Rogue 303 Adventurer 5 Explorer 0 Win Type - Total 11 Types 5/0/5/0/0/0/1/0/0 Lore% 79 Gallery% 90 Achievement% 75 Wizard Run 0 Options --------- Layout 2 ASCII 0 Keyboard 0 Movement Mouse Keybinds 0 Fullscreen 2 Font 24/Smallcaps Map View 50x44 Zoom Use 1% Tactical HUD 1 Map Filters NONE Filters NONE Steam 1 RUN: abe55241-0dc1-4dfc-9964-66fabd6281e6